[Event "EYCC Open-U12 2019"]
[Site "Bratislava"]
[Date "2019.08.08"]
[Round "7.41"]
[White "Paseka, Matyas"]
[Black "Isaksson, Max"]
[Result "1/2-1/2"]
[ECO "C97"]
[WhiteElo "1917"]
[BlackElo "1695"]
[Annotator "NA"]
[PlyCount "86"]
[EventDate "2019.08.02"]
[EventType "swiss"]
[EventCountry "SVK"]
[SourceTitle "playchess.com"]
[Source "ChessBase"]
[SourceQuality "1"]
[TimeControl "40/5400+30:1800+30"]

1. e4 {[%emt 0:00:00]} e5 {[%emt 0:00:00]} 2. Nf3 {[%emt 0:00:00]} Nc6 {[%emt 0:00:00]} 3. Bb5 {[%emt 0:00:00]} a6 {[%emt 0:00:00]} 4. Ba4 {[%emt 0:00:00]} Nf6 {[%emt 0:00:25]} 5. O-O {[%emt 0:00:11]} Be7 {[%emt 0:00:51]} 6. Re1 {[%emt 0:00:08]} b5 {[%emt 0:00:27]} 7. Bb3 {[%emt 0:00:09]} d6 {[%emt 0:00:26]} 8. c3 {[%emt 0:00:10]} O-O {[%emt 0:00:15]} 9. h3 {[%emt 0:00:06]} Na5 {[%emt 0:00:12]} 10. Bc2 {[%emt 0:00:13]} c5 {[%emt 0:00:06]} 11. d4 {[%emt 0:00:14]} Qc7 {[%emt 0:00:13]} 12. d5 {[%emt 0:03:28]} Bd7 {[%emt 0:05:15]} 13. Nbd2 {[%emt 0:00:26]} Rac8 {[%emt 0:02:07]} 14. Nf1 {[%emt 0:04:38]} Nb7 {[%emt 0:03:49]} 15. Ng3 {[%emt 0:00:25]} c4 {[%emt 0:09:41]} 16. Nh4 {[%emt 0:11:32]} g6 {[%emt 0:09:44]} 17. Bh6 {[%emt 0:05:00]} Rfe8 {[%emt 0:01:35]} 18. Qf3 {[%emt 0:20:24]} Qd8 {[%emt 0:05:13]} 19. Ngf5 {[%emt 0:12:20]} Bf8 {[%emt 0:19:25]} 20. Bxf8 {[%emt 0:08:29]} Kxf8 {[%emt 0:04:43]} 21. Ne3 {[%emt 0:05:04]} Nc5 {[%emt 0:07:47]} 22. g4 {[%emt 0:14:12]} Nfxe4 {[%emt 0:14:23]} 23. Nxg6+ {[%emt 0:00:41]} hxg6 {[%emt 0:00:26]} 24. Bxe4 {[%emt 0:00:11]} Nxe4 {[%emt 0:00:22]} 25. Qxe4 {[%emt 0:00:11]} Qh4 {[%emt 0:00:30]} 26. Qf3 {[%emt 0:02:20]} Kg7 {[%emt 0:01:03]} 27. Ng2 {[%emt 0:04:57]} Qg5 {[%emt 0:02:12]} 28. Qe3 {[%emt 0:04:21]} Qxe3 {[%emt 0:02:11]} 29. Rxe3 {[%emt 0:00:12]} Rc5 {[%emt 0:01:06]} 30. Rd1 {[%emt 0:00:07]} Bc8 {[%emt 0:02:10]} 31. Re2 {[%emt 0:00:32]} Rh8 {[%emt 0:00:53]} 32. Re3 {[%emt 0:02:18]} Bb7 {[%emt 0:01:17]} 33. f4 Bxd5 {[%emt 0:03:28]} 34. fxe5 {[%emt 0:01:47]} Bxg2 {[%emt 0:00:16]} 35. Kxg2 {[%emt 0:00:03]} dxe5 36. Rd7 {[%emt 0:00:25]} Re8 {[%emt 0:03:45]} 37. Rf3 {[%emt 0:00:11]} Rf8 {[%emt 0:00:17]} 38. Kf2 {[%emt 0:01:09]} Rc6 {[%emt 0:01:06]} 39. g5 {[%emt 0:00:21]} Kg8 {[%emt 0:01:19]} 40. Re7 {[%emt 0:00:00]} f6 {[%emt 0:00:00]} 41. h4 Rf7 {[%emt 0:10:49]} 42. Re8+ {[%emt 0:04:46]} Rf8 {[%emt 0:06:24]} 43. Re7 Rf7 {[%emt 0:06:45]} 1/2-1/2

[Event "EYCC Open-U12 2019"]
[Site "Bratislava"]
[Date "2019.08.08"]
[Round "7.42"]
[White "Bunic, Emanuel"]
[Black "Codreanu, Marius"]
[Result "0-1"]
[ECO "E67"]
[WhiteElo "1718"]
[BlackElo "1834"]
[Annotator "NA"]
[PlyCount "180"]
[EventDate "2019.08.02"]
[EventType "swiss"]
[EventCountry "SVK"]
[SourceTitle "playchess.com"]
[Source "ChessBase"]
[SourceQuality "1"]
[TimeControl "40/5400+30:1800+30"]

1. d4 {[%emt 0:00:00]} d6 {[%emt 0:00:00]} 2. Nf3 {[%emt 0:00:00]} g6 {[%emt 0:00:00]} 3. g3 {[%emt 0:00:00]} Bg7 {[%emt 0:00:00]} 4. Bg2 {[%emt 0:00:02]} Nd7 {[%emt 0:00:22]} 5. O-O {[%emt 0:00:15]} Ngf6 {[%emt 0:00:23]} 6. c4 {[%emt 0:00:16]} O-O {[%emt 0:00:29]} 7. Nc3 {[%emt 0:00:25]} e5 {[%emt 0:07:06]} 8. Qc2 {[%emt 0:00:15]} c6 {[%emt 0:02:23]} 9. Rd1 {[%emt 0:00:42]} Qc7 {[%emt 0:02:08]} 10. dxe5 {[%emt 0:02:04]} dxe5 {[%emt 0:00:21]} 11. Ng5 {[%emt 0:00:24]} Nc5 {[%emt 0:02:51]} 12. b4 {[%emt 0:00:40]} Ne6 {[%emt 0:01:08]} 13. Nf3 {[%emt 0:12:39]} b6 {[%emt 0:14:13]} 14. Bb2 {[%emt 0:04:05]} Bb7 {[%emt 0:05:06]} 15. Nxe5 {[%emt 0:09:25]} Qxe5 {[%emt 0:09:42]} 16. Nd5 {[%emt 0:03:10]} Qxb2 {[%emt 0:16:02]} 17. Ne7+ {[%emt 0:15:17]} Kh8 {[%emt 0:00:35]} 18. Qxb2 {[%emt 0:00:09]} Ng8 {[%emt 0:06:57]} 19. Qc1 {[%emt 0:00:59]} Nxe7 {[%emt 0:00:43]} 20. Rb1 {[%emt 0:00:27]} Rad8 {[%emt 0:15:07]} 21. e3 {[%emt 0:01:59]} a6 {[%emt 0:07:42]} 22. Qc2 {[%emt 0:00:35]} b5 {[%emt 0:01:16]} 23. a4 {[%emt 0:03:36]} bxc4 {[%emt 0:00:51]} 24. Qxc4 {[%emt 0:00:12]} Nd5 {[%emt 0:00:26]} 25. Rbc1 {[%emt 0:03:53]} Bb2 {[%emt 0:01:01]} 26. Rb1 {[%emt 0:02:03]} Bg7 {[%emt 0:00:44]} 27. h3 {[%emt 0:04:37]} h6 {[%emt 0:00:35]} 28. Kh2 {[%emt 0:00:13]} Kh7 {[%emt 0:00:14]} 29. h4 {[%emt 0:12:01]} h5 {[%emt 0:00:35]} 30. Bf3 {[%emt 0:00:16]} Nc3 {[%emt 0:02:34]} 31. Rxd8 {[%emt 0:00:10]} Rxd8 {[%emt 0:00:01]} 32. Rc1 {[%emt 0:00:23]} Rd2 {[%emt 0:00:46]} 33. Kg2 {[%emt 0:00:25]} Nd5 {[%emt 0:00:16]} 34. Kg1 {[%emt 0:01:08]} Rb2 {[%emt 0:00:34]} 35. Bxd5 {[%emt 0:08:37]} cxd5 {[%emt 0:00:04]} 36. Qd3 {[%emt 0:00:30]} Ra2 {[%emt 0:02:13]} 37. Qb3 {[%emt 0:01:32]} Rb2 {[%emt 0:00:06]} 38. Qd3 {[%emt 0:00:03]} Ra2 {[%emt 0:01:26]} 39. Qb3 {[%emt 0:00:15]} Rb2 {[%emt 0:00:04]} 40. Qd3 {[%emt 0:00:00]} Bf6 {[%emt 0:00:00]} 41. Rb1 {[%emt 0:01:03]} Ra2 {[%emt 0:02:46]} 42. Qb3 {[%emt 0:00:27]} Rd2 {[%emt 0:00:44]} 43. Qa3 {[%emt 0:02:50]} d4 {[%emt 0:02:50]} 44. b5 {[%emt 0:03:09]} a5 {[%emt 0:06:54]} 45. Qb3 {[%emt 0:02:49]} Kg7 {[%emt 0:04:13]} 46. Qa3 {[%emt 0:00:33]} g5 {[%emt 0:05:56]} 47. hxg5 {[%emt 0:09:05]} Nxg5 {[%emt 0:00:51]} 48. Rc1 {[%emt 0:01:20]} Nh3+ {[%emt 0:03:02]} 49. Kf1 {[%emt 0:00:23]} d3 {[%emt 0:02:30]} 50. Rc6 {[%emt 0:03:46]} Rxf2+ {[%emt 0:01:02]} 51. Ke1 {[%emt 0:00:11]} Re2+ {[%emt 0:01:29]} 52. Kf1 {[%emt 0:00:02]} Rf2+ {[%emt 0:05:38]} 53. Ke1 {[%emt 0:00:06]} d2+ {[%emt 0:00:53]} 54. Kd1 {[%emt 0:00:12]} Bxc6 {[%emt 0:00:25]} 55. bxc6 {[%emt 0:00:06]} Be5 {[%emt 0:00:21]} 56. Qc5 {[%emt 0:01:30]} Bc7 {[%emt 0:00:37]} 57. Qe7 {[%emt 0:00:49]} Bxg3 {[%emt 0:00:41]} 58. c7 {[%emt 0:00:14]} Bxc7 {[%emt 0:00:25]} 59. Qxc7 {[%emt 0:00:01]} h4 {[%emt 0:00:32]} 60. Qd7 {[%emt 0:00:31]} Ng5 {[%emt 0:00:34]} 61. e4 {[%emt 0:08:24]} Kg6 {[%emt 0:00:29]} 62. Qa7 {[%emt 0:09:43]} Rg2 {[%emt 0:00:18]} 63. Qa6+ {[%emt 0:00:34]} Kh5 {[%emt 0:00:36]} 64. Qf1 {[%emt 0:00:42]} h3 {[%emt 0:00:22]} 65. Kc2 {[%emt 0:00:36]} Kh4 {[%emt 0:00:42]} 66. Qf4+ {[%emt 0:00:29]} Kh5 {[%emt 0:00:06]} 67. Qf1 {[%emt 0:01:57]} Kh4 {[%emt 0:00:51]} 68. Qf4+ {[%emt 0:00:07]} Rg4 {[%emt 0:00:35]} 69. Qf2+ {[%emt 0:01:23]} Rg3 {[%emt 0:00:10]} 70. Qf4+ {[%emt 0:00:25]} Rg4 {[%emt 0:00:03]} 71. Qf2+ {[%emt 0:00:11]} Kh5 {[%emt 0:00:11]} 72. Qf1 {[%emt 0:05:18]} Rxe4 {[%emt 0:01:25]} 73. Kxd2 {[%emt 0:00:10]} Rxa4 {[%emt 0:00:27]} 74. Kc3 {[%emt 0:00:37]} Rg4 {[%emt 0:00:16]} 75. Kb3 {[%emt 0:00:37]} h2 {[%emt 0:00:54]} 76. Ka3 {[%emt 0:00:27]} f5 {[%emt 0:00:16]} 77. Qd1 {[%emt 0:01:00]} f4 {[%emt 0:00:30]} 78. Ka4 {[%emt 0:00:17]} f3+ {[%emt 0:00:27]} 79. Kxa5 {[%emt 0:00:17]} Rh4 {[%emt 0:00:14]} 80. Qh1 {[%emt 0:00:59]} Kg4 {[%emt 0:00:12]} 81. Kb5 {[%emt 0:00:20]} Ne4 {[%emt 0:00:32]} 82. Qe1 {[%emt 0:00:58]} h1=Q {[%emt 0:00:36]} 83. Qxe4+ {[%emt 0:00:06]} Kg3 {[%emt 0:00:12]} 84. Qe5+ {[%emt 0:00:15]} Kf2 {[%emt 0:00:27]} 85. Qc5+ {[%emt 0:00:27]} Kf1 {[%emt 0:00:29]} 86. Qc1+ {[%emt 0:00:15]} Kf2 {[%emt 0:00:29]} 87. Qd2+ {[%emt 0:00:11]} Kg3 {[%emt 0:00:17]} 88. Qg5+ {[%emt 0:00:16]} Rg4 {[%emt 0:00:08]} 89. Qe5+ {[%emt 0:00:06]} Kg2 {[%emt 0:00:08]} 90. Qb2+ {[%emt 0:01:28]} f2 {[%emt 0:00:07]} 0-1

[Event "EYCC Open-U12 2019"]
[Site "Bratislava"]
[Date "2019.08.08"]
[Round "7.43"]
[White "Rotunno, Flavio"]
[Black "Werner, Hong Quan Dan"]
[Result "0-1"]
[ECO "E97"]
[WhiteElo "1819"]
[BlackElo "1734"]
[Annotator "NA"]
[PlyCount "68"]
[EventDate "2019.08.02"]
[EventType "swiss"]
[EventCountry "SVK"]
[SourceTitle "playchess.com"]
[Source "ChessBase"]
[SourceQuality "1"]
[TimeControl "40/5400+30:1800+30"]

1. d4 {[%emt 0:00:00]} Nf6 {[%emt 0:00:00]} 2. Nf3 {[%emt 0:00:00]} g6 {[%emt 0:00:07]} 3. c4 {[%emt 0:00:00]} Bg7 4. Nc3 {[%emt 0:00:00]} d6 {[%emt 0:02:05]} 5. e4 {[%emt 0:00:00]} O-O {[%emt 0:00:09]} 6. Be2 {[%emt 0:00:00]} e5 {[%emt 0:02:10]} 7. O-O {[%emt 0:00:06]} Nc6 {[%emt 0:00:36]} 8. d5 {[%emt 0:00:07]} Ne7 {[%emt 0:00:15]} 9. Nd2 {[%emt 0:00:57]} Ne8 {[%emt 0:02:12]} 10. b4 {[%emt 0:03:25]} f5 {[%emt 0:00:48]} 11. a4 {[%emt 0:07:39]} a5 {[%emt 0:08:57]} 12. bxa5 {[%emt 0:03:58]} Rxa5 {[%emt 0:01:53]} 13. Nb3 {[%emt 0:00:17]} Ra8 {[%emt 0:00:07]} 14. f3 {[%emt 0:05:09]} f4 {[%emt 0:00:26]} 15. c5 {[%emt 0:02:35]} g5 {[%emt 0:10:33]} 16. Ba3 {[%emt 0:11:13]} Rf6 {[%emt 0:03:41]} 17. Bb4 {[%emt 0:07:41]} h5 {[%emt 0:05:23]} 18. Kf2 {[%emt 0:15:11]} Rg6 {[%emt 0:09:39]} 19. Ke1 {[%emt 0:06:55]} g4 {[%emt 0:04:29]} 20. Kd2 {[%emt 0:07:24]} Bh6 {[%emt 0:00:47]} 21. Kc2 {[%emt 0:01:06]} Bf8 {[%emt 0:08:45]} 22. Nb5 {[%emt 0:06:20]} Bd7 {[%emt 0:02:55]} 23. Qd2 {[%emt 0:04:17]} Rc8 {[%emt 0:15:56]} 24. Kb2 {[%emt 0:02:46]} dxc5 {[%emt 0:04:44]} 25. Nxc5 {[%emt 0:01:56]} Bxb5 {[%emt 0:01:53]} 26. Bxb5 {[%emt 0:08:58]} c6 {[%emt 0:01:14]} 27. Nxb7 {[%emt 0:04:37]} Qb6 {[%emt 0:00:50]} 28. Bxe7 {[%emt 0:00:37]} Bxe7 {[%emt 0:04:04]} 29. dxc6 {[%emt 0:00:35]} Rgxc6 {[%emt 0:00:41]} 30. Qd5+ {[%emt 0:00:17]} Kg7 {[%emt 0:00:30]} 31. Rfc1 {[%emt 0:00:48]} Qf2+ {[%emt 0:00:47]} 32. Kb3 {[%emt 0:00:34]} Qe3+ {[%emt 0:01:50]} 33. Bd3 {[%emt 0:00:30]} Rb6+ {[%emt 0:01:31]} 34. Ka2 {[%emt 0:00:26]} Qd2+ {[%emt 0:00:13]} 0-1

[Event "EYCC Open-U12 2019"]
[Site "Bratislava"]
[Date "2019.08.08"]
[Round "7.44"]
[White "Venkatesan, Kavin"]
[Black "Cherniaev, Danil"]
[Result "1-0"]
[ECO "E15"]
[WhiteElo "1797"]
[BlackElo "1513"]
[Annotator "NA"]
[PlyCount "101"]
[EventDate "2019.08.02"]
[EventType "swiss"]
[EventCountry "SVK"]
[SourceTitle "playchess.com"]
[Source "ChessBase"]
[SourceQuality "1"]
[TimeControl "40/5400+30:1800+30"]

1. d4 {[%emt 0:00:00]} Nf6 {[%emt 0:00:00]} 2. c4 {[%emt 0:00:00]} e6 {[%emt 0:00:00]} 3. Nf3 {[%emt 0:01:13]} b6 {[%emt 0:00:01]} 4. g3 {[%emt 0:04:12]} Bb4+ {[%emt 0:00:17]} 5. Bd2 {[%emt 0:00:34]} Qe7 {[%emt 0:00:10]} 6. Bg2 {[%emt 0:01:02]} Bb7 {[%emt 0:00:07]} 7. O-O {[%emt 0:00:48]} Bxd2 {[%emt 0:02:04]} 8. Nbxd2 {[%emt 0:00:43]} O-O {[%emt 0:00:09]} 9. Qc2 {[%emt 0:04:08]} d6 {[%emt 0:01:22]} 10. e4 {[%emt 0:03:30]} e5 {[%emt 0:01:49]} 11. Rfe1 {[%emt 0:06:46]} Nbd7 {[%emt 0:03:10]} 12. Nh4 {[%emt 0:04:07]} g6 {[%emt 0:00:23]} 13. Rad1 {[%emt 0:05:52]} Rad8 {[%emt 0:02:57]} 14. Nb3 {[%emt 0:08:05]} Nh5 {[%emt 0:04:10]} 15. d5 {[%emt 0:09:53]} Ng7 {[%emt 0:01:54]} 16. Kh1 {[%emt 0:04:44]} Rde8 {[%emt 0:05:41]} 17. Bh3 {[%emt 0:05:28]} Bc8 {[%emt 0:01:06]} 18. Bg2 {[%emt 0:01:54]} f5 {[%emt 0:01:50]} 19. exf5 {[%emt 0:00:18]} Nxf5 {[%emt 0:00:11]} 20. Nxf5 {[%emt 0:00:08]} Rxf5 {[%emt 0:00:09]} 21. Nd4 {[%emt 0:03:14]} Rf6 {[%emt 0:01:48]} 22. Rd2 {[%emt 0:03:08]} Qf7 {[%emt 0:01:22]} 23. Nb5 {[%emt 0:01:24]} Nc5 {[%emt 0:01:21]} 24. b4 {[%emt 0:05:55]} Bf5 {[%emt 0:01:55]} 25. Qc3 {[%emt 0:02:10]} Nb7 {[%emt 0:01:06]} 26. Nxa7 {[%emt 0:00:49]} Bg4 {[%emt 0:01:08]} 27. Qb2 {[%emt 0:01:14]} Rf8 {[%emt 0:00:46]} 28. Rf1 {[%emt 0:00:33]} Bf3 {[%emt 0:00:19]} 29. Bxf3 {[%emt 0:03:50]} Rxf3 {[%emt 0:00:04]} 30. Re2 {[%emt 0:00:54]} Qf5 {[%emt 0:00:48]} 31. Nc6 {[%emt 0:00:59]} Qh3 {[%emt 0:00:31]} 32. Rg1 {[%emt 0:00:50]} Kg7 {[%emt 0:01:14]} 33. Rg2 {[%emt 0:02:36]} Qg4 {[%emt 0:03:29]} 34. Rxe5 {[%emt 0:01:23]} dxe5 {[%emt 0:06:03]} 35. Nxe5 {[%emt 0:00:08]} Qe4 {[%emt 0:08:04]} 36. Nxf3+ {[%emt 0:01:11]} Kg8 {[%emt 0:00:07]} 37. Ne5 {[%emt 0:06:00]} Rf5 {[%emt 0:02:57]} 38. f4 {[%emt 0:00:51]} Nd6 {[%emt 0:01:38]} 39. c5 {[%emt 0:04:35]} Nb5 {[%emt 0:00:48]} 40. d6 {[%emt 0:00:00]} cxd6 {[%emt 0:00:00]} 41. cxd6 {[%emt 0:03:45]} Nxd6 {[%emt 0:02:02]} 42. Qb3+ {[%emt 0:04:03]} Kg7 {[%emt 0:00:07]} 43. Qc3 {[%emt 0:03:08]} Kg8 {[%emt 0:02:28]} 44. Qb3+ {[%emt 0:00:22]} Kg7 {[%emt 0:00:06]} 45. Qc3 {[%emt 0:00:11]} Kg8 {[%emt 0:01:20]} 46. h4 {[%emt 0:00:12]} Nf7 {[%emt 0:01:21]} 47. Nd7 {[%emt 0:01:13]} Qb1+ {[%emt 0:01:46]} 48. Kh2 Nd6 {[%emt 0:00:50]} 49. Nxb6 {[%emt 0:03:37]} Rb5 50. Nc8 {[%emt 0:01:16]} Ne4 {[%emt 0:00:59]} 51. Qc4+ {[%emt 0:00:09]} 1-0

[Event "EYCC Open-U12 2019"]
[Site "Bratislava"]
[Date "2019.08.08"]
[Round "7.45"]
[White "Zakarian, Dimitrios Levon"]
[Black "Zlatkov, Anton"]
[Result "0-1"]
[ECO "D37"]
[WhiteElo "1580"]
[BlackElo "1782"]
[Annotator "NA"]
[PlyCount "76"]
[EventDate "2019.08.02"]
[EventType "swiss"]
[EventCountry "SVK"]
[SourceTitle "playchess.com"]
[Source "ChessBase"]
[SourceQuality "1"]
[TimeControl "40/5400+30:1800+30"]

1. d4 {[%emt 0:00:00]} d5 {[%emt 0:00:00]} 2. Nf3 {[%emt 0:00:00]} Nf6 {[%emt 0:00:54]} 3. c4 {[%emt 0:00:02]} e6 {[%emt 0:00:06]} 4. Nc3 {[%emt 0:00:08]} Nbd7 {[%emt 0:01:40]} 5. Bg5 {[%emt 0:01:04]} Be7 {[%emt 0:00:08]} 6. e3 {[%emt 0:00:10]} a6 {[%emt 0:00:24]} 7. a4 {[%emt 0:07:30]} O-O {[%emt 0:05:19]} 8. Qc2 {[%emt 0:02:10]} b6 {[%emt 0:06:45]} 9. cxd5 {[%emt 0:01:59]} exd5 {[%emt 0:02:17]} 10. Bd3 {[%emt 0:00:44]} Bb7 {[%emt 0:02:24]} 11. O-O {[%emt 0:06:46]} Ne4 {[%emt 0:16:28]} 12. Bxe7 {[%emt 0:12:18]} Qxe7 {[%emt 0:00:04]} 13. Qb3 {[%emt 0:00:45]} Qd6 {[%emt 0:03:51]} 14. Bxe4 {[%emt 0:06:21]} dxe4 {[%emt 0:00:11]} 15. Nd2 {[%emt 0:00:17]} Rae8 {[%emt 0:06:05]} 16. Rfd1 {[%emt 0:07:26]} Re6 {[%emt 0:06:14]} 17. Qa3 {[%emt 0:03:51]} c5 {[%emt 0:11:50]} 18. dxc5 {[%emt 0:06:48]} Nxc5 {[%emt 0:08:25]} 19. Nf1 {[%emt 0:14:05]} Qe5 {[%emt 0:02:35]} 20. Ne2 {[%emt 0:03:08]} Nd3 {[%emt 0:02:18]} 21. Nd4 {[%emt 0:01:37]} Rg6 {[%emt 0:01:01]} 22. Ng3 {[%emt 0:05:00]} f5 {[%emt 0:03:40]} 23. Nge2 {[%emt 0:03:38]} f4 {[%emt 0:08:24]} 24. Nxf4 {[%emt 0:01:34]} Nxf4 {[%emt 0:00:09]} 25. exf4 {[%emt 0:00:03]} Qxf4 {[%emt 0:00:35]} 26. Qe3 {[%emt 0:00:58]} Qg4 {[%emt 0:00:29]} 27. Qg3 {[%emt 0:01:11]} e3 {[%emt 0:03:20]} 28. f3 {[%emt 0:03:38]} Qxg3 {[%emt 0:01:22]} 29. hxg3 {[%emt 0:00:05]} Rxg3 {[%emt 0:00:50]} 30. Kh2 {[%emt 0:00:06]} Rg6 {[%emt 0:00:28]} 31. Re1 {[%emt 0:00:48]} Rd6 {[%emt 0:01:18]} 32. Nc2 {[%emt 0:01:25]} Rd2 {[%emt 0:00:50]} 33. Nxe3 {[%emt 0:00:45]} Bxf3 {[%emt 0:01:10]} 34. Kg3 {[%emt 0:01:02]} Bb7 {[%emt 0:00:21]} 35. b4 {[%emt 0:00:44]} Re8 {[%emt 0:01:23]} 36. Kf4 {[%emt 0:01:34]} h6 {[%emt 0:00:36]} 37. Nf5 {[%emt 0:02:42]} Rf8 {[%emt 0:01:37]} 38. Ke5 {[%emt 0:00:45]} Rd5+ {[%emt 0:00:08]} 0-1

[Event "EYCC Open-U12 2019"]
[Site "Bratislava"]
[Date "2019.08.08"]
[Round "7.46"]
[White "Lye, Sverre"]
[Black "Grishin, Petr E."]
[Result "1-0"]
[ECO "C50"]
[WhiteElo "1839"]
[BlackElo "1506"]
[Annotator "NA"]
[PlyCount "59"]
[EventDate "2019.08.02"]
[EventType "swiss"]
[EventCountry "SVK"]
[SourceTitle "playchess.com"]
[Source "ChessBase"]
[SourceQuality "1"]
[TimeControl "40/5400+30:1800+30"]

1. e4 {[%emt 0:00:00]} e5 {[%emt 0:00:00]} 2. Nf3 {[%emt 0:00:00]} Nc6 {[%emt 0:00:00]} 3. Bc4 {[%emt 0:00:11]} Nf6 {[%emt 0:00:00]} 4. d3 {[%emt 0:02:45]} Bc5 {[%emt 0:00:05]} 5. c3 {[%emt 0:00:48]} O-O {[%emt 0:00:16]} 6. O-O {[%emt 0:00:50]} d5 {[%emt 0:00:04]} 7. exd5 {[%emt 0:01:22]} Nxd5 {[%emt 0:00:07]} 8. a4 {[%emt 0:01:39]} Nb6 {[%emt 0:10:47]} 9. Bb5 {[%emt 0:03:44]} f6 {[%emt 0:06:34]} 10. a5 {[%emt 0:04:51]} Nd5 {[%emt 0:00:33]} 11. Nbd2 {[%emt 0:02:42]} a6 {[%emt 0:01:36]} 12. Bc4 {[%emt 0:02:47]} Kh8 {[%emt 0:04:22]} 13. d4 {[%emt 0:07:16]} exd4 {[%emt 0:03:15]} 14. Nb3 {[%emt 0:01:08]} Ba7 {[%emt 0:00:54]} 15. Nbxd4 {[%emt 0:00:56]} Bg4 {[%emt 0:10:15]} 16. h3 {[%emt 0:03:34]} Bxf3 {[%emt 0:04:07]} 17. Nxf3 {[%emt 0:00:47]} Nde7 {[%emt 0:04:54]} 18. Bf4 {[%emt 0:05:23]} Qxd1 {[%emt 0:02:26]} 19. Rfxd1 {[%emt 0:00:27]} Rad8 {[%emt 0:03:01]} 20. Bxc7 {[%emt 0:06:32]} Rxd1+ {[%emt 0:00:06]} 21. Rxd1 {[%emt 0:00:06]} Rc8 {[%emt 0:00:35]} 22. Rd7 {[%emt 0:00:14]} Ng6 {[%emt 0:03:31]} 23. Bd5 {[%emt 0:06:31]} Nge7 {[%emt 0:02:49]} 24. Be6 {[%emt 0:03:13]} h5 {[%emt 0:01:17]} 25. Bd6 {[%emt 0:03:50]} Ng6 {[%emt 0:02:43]} 26. b4 {[%emt 0:05:04]} Nd8 {[%emt 0:00:59]} 27. Bf5 {[%emt 0:00:52]} Kh7 {[%emt 0:00:31]} 28. Rxg7+ {[%emt 0:01:42]} Kxg7 {[%emt 0:00:21]} 29. Bxc8 {[%emt 0:00:05]} Nf7 {[%emt 0:00:29]} 30. Bc7 {[%emt 0:00:39]} 1-0

[Event "EYCC Open-U12 2019"]
[Site "Bratislava"]
[Date "2019.08.08"]
[Round "7.47"]
[White "Leal Prado, David Elias"]
[Black "Krawczyk, Flawian"]
[Result "1/2-1/2"]
[ECO "D31"]
[WhiteElo "1741"]
[BlackElo "1848"]
[Annotator "NA"]
[PlyCount "74"]
[EventDate "2019.08.02"]
[EventType "swiss"]
[EventCountry "SVK"]
[SourceTitle "playchess.com"]
[Source "ChessBase"]
[SourceQuality "1"]
[TimeControl "40/5400+30:1800+30"]

1. d4 {[%emt 0:00:00]} d5 {[%emt 0:00:00]} 2. c4 {[%emt 0:00:00]} e6 {[%emt 0:00:00]} 3. Nc3 {[%emt 0:00:05]} Bb4 {[%emt 0:00:05]} 4. cxd5 {[%emt 0:00:40]} exd5 {[%emt 0:00:04]} 5. Bf4 {[%emt 0:02:15]} Nf6 {[%emt 0:01:10]} 6. Qc2 {[%emt 0:02:52]} O-O {[%emt 0:01:01]} 7. e3 {[%emt 0:00:33]} c5 {[%emt 0:00:37]} 8. a3 {[%emt 0:10:01]} Bxc3+ {[%emt 0:00:57]} 9. bxc3 {[%emt 0:00:08]} cxd4 {[%emt 0:00:19]} 10. cxd4 {[%emt 0:00:49]} Qa5+ {[%emt 0:02:36]} 11. Qd2 {[%emt 0:01:11]} Qxd2+ {[%emt 0:00:16]} 12. Kxd2 {[%emt 0:00:05]} Ne4+ {[%emt 0:01:02]} 13. Ke1 {[%emt 0:00:33]} Re8 {[%emt 0:01:28]} 14. Nf3 {[%emt 0:04:47]} Nc6 {[%emt 0:00:48]} 15. Rb1 {[%emt 0:07:07]} a6 {[%emt 0:06:03]} 16. Bd3 {[%emt 0:01:55]} f6 {[%emt 0:02:19]} 17. h4 {[%emt 0:04:25]} b5 {[%emt 0:03:48]} 18. Nd2 {[%emt 0:04:37]} Na5 {[%emt 0:06:01]} 19. Bxe4 {[%emt 0:02:49]} dxe4 {[%emt 0:00:10]} 20. Ke2 {[%emt 0:03:46]} Be6 {[%emt 0:02:31]} 21. Rhc1 {[%emt 0:11:22]} Bc4+ {[%emt 0:00:28]} 22. Nxc4 {[%emt 0:03:03]} Nxc4 {[%emt 0:00:09]} 23. a4 {[%emt 0:03:20]} Kf7 {[%emt 0:01:28]} 24. Rb4 {[%emt 0:05:13]} Rec8 {[%emt 0:05:40]} 25. axb5 {[%emt 0:00:50]} axb5 {[%emt 0:00:11]} 26. Rxb5 {[%emt 0:01:15]} Ra2+ {[%emt 0:03:07]} 27. Ke1 {[%emt 0:00:59]} Ke6 {[%emt 0:05:30]} 28. d5+ {[%emt 0:05:15]} Kf5 {[%emt 0:02:20]} 29. Rb4 {[%emt 0:02:52]} Nb2 {[%emt 0:02:33]} 30. Rxc8 {[%emt 0:03:07]} Nd3+ {[%emt 0:00:14]} 31. Kf1 {[%emt 0:02:19]} Ra1+ {[%emt 0:00:48]} 32. Ke2 {[%emt 0:00:41]} Ra2+ {[%emt 0:00:13]} 33. Kf1 Ra1+ {[%emt 0:02:20]} 34. Ke2 {[%emt 0:07:52]} Ra2+ {[%emt 0:00:02]} 35. Kd1 {[%emt 0:01:28]} Nxb4 {[%emt 0:02:52]} 36. d6 {[%emt 0:01:42]} Ra3 {[%emt 0:04:06]} 37. Rc1 {[%emt 0:05:48]} Nd3 {[%emt 0:02:41]} 1/2-1/2